bitfinex-derivatives/quotes_SOLF0:USTF0_20250911
["timestamp","ask_amount","ask_price","bid_price","bid_amount"]
[1757592906454,7.11,227.81,227.59,294.78]
[1757592906455,7.11,227.77,227.61,7.14421189]
[1757592906656,7.11,227.77,227.59,294.78]
[1757592906853,7.11,227.77,227.57,17.92]
[1757592907053,6.72078855,227.78,227.57,25.06421189]
[1757592907356,6.72078855,227.78,227.57,17.92]
[1757592907555,7.11,227.77,227.57,17.92]
[1757592908057,7.11,227.77,227.58,62.0]
[1757592908254,6.72078855,227.78,227.58,62.0]
[1757592908456,7.11,227.77,227.58,62.0]
[1757592909460,6.72078855,227.78,227.58,62.0]
[1757592909762,7.11,227.77,227.58,62.0]
[1757592910559,7.11,227.77,227.57,4.77]
[1757592910959,6.72078855,227.72,227.57,4.77]
[1757592911265,7.11,227.71,227.57,4.77]
[1757592911566,7.11,227.71,227.51,4.77]
[1757592911757,7.11,227.65,227.45,7.14421189]
[1757592911956,7.11,227.65,227.44,11.91421189]
[1757592912156,7.11,227.65,227.44,4.77]
[1757592912961,6.72078855,227.6,227.37,7.14421189]
[1757592913161,6.72078855,227.6,227.36,4.77]
[1757592913162,7.11,227.59,227.36,4.77]
[1757592915965,7.11,227.53,227.36,4.77]
[1757592916268,7.11,227.53,227.27,4.77]
[1757592916665,7.11,227.53,227.29,4.77]
[1757592916866,7.11,227.47,227.29,4.77]
[1757592917174,7.11,227.47,227.23,294.98]
[1757592917370,7.11,227.47,227.24,4.77]
[1757592918569,7.11,227.44,227.24,4.77]
[1757592918972,7.11,227.42,227.24,4.77]
[1757592920477,7.11,227.39,227.17,4.77]
[1757592920777,11.19774228,227.39,227.17,4.77]
[1757592921771,7.11,227.39,227.17,4.77]
[1757592923876,7.11,227.39,227.18,4.77]
[1757592924076,4.08774228,227.38,227.18,4.77]
[1757592924477,7.11,227.39,227.18,4.77]
[1757592926075,7.11,227.39,227.19,4.77]
[1757592926574,7.11,227.39,227.2,4.77]
[1757592928878,32.72774228,227.43,227.2,4.77]
[1757592928879,6.85,227.37,227.2,4.77]
[1757592929676,4.08774228,227.38,227.19,357.36]
[1757592929980,6.85,227.42,227.19,295.36]
[1757592930282,28.64,227.43,227.19,295.36]
[1757592930283,6.85,227.38,227.19,300.16]
[1757592931371,4.08774228,227.4,227.19,438.3]
[1757592931581,6.85,227.39,227.19,438.3]
[1757592931984,4.08774228,227.4,227.19,438.3]
[1757592932878,6.85,227.39,227.19,300.16]
[1757592933177,6.85,227.39,227.2,138.14]
[1757592934077,6.85,227.39,227.21,4.8]
[1757592935676,6.85,227.39,227.21,138.12]
[1757592936485,6.85,227.39,227.22,62.0]
[1757592937479,6.85,227.41,227.22,200.1]
[1757592937784,6.85,227.42,227.22,138.1]
[1757592938182,4.08774228,227.39,227.2,4.8]
[1757592938382,6.85,227.38,227.2,4.8]
[1757592939583,25.98,227.37,227.2,4.8]
[1757592939983,6.85,227.36,227.2,4.8]
[1757592940482,25.98,227.37,227.01,7.14421189]
[1757592940483,6.85,227.32,227.14,4.8]
[1757592940686,6.85,227.32,227.15,4.8]
[1757592941281,6.85,227.32,227.16,56.58]
[1757592941684,25.98,227.37,227.17,4.8]
[1757592941890,25.98,227.37,227.18,82.42]
[1757592942083,25.98,227.37,227.19,4.8]
[1757592942284,25.98,227.37,227.21,4.8]
[1757592942984,25.98,227.37,227.22,28.42]
[1757592943285,25.98,227.37,227.23,4.8]
[1757592943880,25.98,227.37,227.18,295.52]
[1757592943881,25.98,227.37,227.24,138.06]
[1757592944088,25.98,227.37,227.25,4.8]
[1757592944384,25.98,227.37,227.27,4.8]
[1757592944585,25.98,227.37,227.28,138.04]
[1757592944886,25.98,227.37,227.29,4.8]
[1757592945182,25.98,227.37,227.31,4.8]
[1757592945383,21.18,227.37,227.31,4.08774228]
[1757592945587,21.18,227.37,227.32,138.02]
[1757592945789,21.18,227.37,227.32,138.46]
[1757592945987,21.18,227.37,227.33,138.46]
[1757592946188,21.18,227.37,227.33,0.44]
[1757592946588,21.18,227.37,227.31,4.08774228]
[1757592946783,21.18,227.37,227.34,138.0]
[1757592946986,28.64,227.43,227.3,13.15]
[1757592947185,28.64,227.43,227.33,4.08774228]
[1757592947587,28.64,227.43,227.34,151.57]
[1757592947889,28.64,227.43,227.35,137.98]
[1757592948085,28.64,227.43,227.36,295.48]
[1757592948283,28.64,227.43,227.37,137.98]
[1757592948588,28.64,227.43,227.39,62.0]
[1757592948790,28.64,227.43,227.4,137.96]
[1757592948990,28.64,227.43,227.41,137.96]
[1757592949390,27.76,227.43,227.42,0.44]
[1757592949688,27.76,227.43,227.39,66.08774228]
[1757592949882,27.76,227.43,227.39,62.0]
[1757592950088,27.76,227.43,227.4,137.92]
[1757592950291,27.76,227.43,227.41,137.92]
[1757592950489,27.76,227.43,227.39,62.0]
[1757592950886,27.76,227.43,227.36,295.48]
[1757592951591,27.76,227.43,227.37,142.61308691]
[1757592951782,27.76,227.43,227.37,4.71308691]
[1757592951992,27.76,227.43,227.38,137.9]
[1757592952183,27.76,227.43,227.38,4.71308691]
[1757592952488,27.76,227.43,227.36,308.63]
[1757592952489,27.76,227.43,227.39,137.88]
[1757592952791,27.76,227.43,227.4,137.88]
[1757592952986,27.76,227.43,227.41,137.86]
[1757592953895,27.76,227.43,227.42,62.0]
[1757592954295,27.76,227.43,227.42,199.84]
[1757592954888,27.76,227.43,227.42,199.82]
[1757592956088,27.76,227.43,227.42,199.8]
[1757592956291,27.76,227.43,227.42,137.8]
[1757592956489,27.76,227.43,227.36,295.48]
[1757592956690,28.64,227.43,227.37,137.78]
[1757592957394,28.64,227.43,227.36,295.48]
[1757592957595,27.76,227.43,227.36,295.48]
[1757592957792,27.76,227.43,227.37,137.76]
[1757592958090,27.76,227.43,227.38,137.76]
[1757592958297,0.88,227.42,227.38,137.76]
[1757592958790,27.76,227.43,227.38,137.76]
[1757592959099,27.76,227.43,227.37,4.71308691]
[1757592959298,27.76,227.43,227.38,62.0]
[1757592959592,27.76,227.43,227.39,150.87]
[1757592959787,0.76,227.43,227.42,4.76315787]
[1757592959993,0.76,227.43,227.4,144.86421189]
[1757592960190,0.76,227.43,227.42,4.76294714]
[1757592960401,0.76,227.43,227.42,137.7]
[1757592960596,0.76,227.43,227.38,62.0]
[1757592960902,0.76,227.43,227.39,137.7]
[1757592961292,1.64,227.43,227.38,62.0]
[1757592961492,1.64,227.43,227.36,295.48]
[1757592961493,0.88,227.39,227.36,295.48]
[1757592961697,0.76,227.43,227.37,137.68]
[1757592961893,0.88,227.4,227.37,137.68]
[1757592962395,7.14,227.44,227.37,137.68]
[1757592962600,0.88,227.41,227.37,137.68]
[1757592962895,7.14,227.43,227.36,295.48]
[1757592963099,0.88,227.37,227.36,295.48]
[1757592963300,0.88,227.37,227.36,433.14]
[1757592965395,0.88,227.37,227.36,295.48]
[1757592965602,8.02,227.37,227.36,423.288]
[1757592966101,8.02,227.37,227.36,285.648]
[1757592966295,7.58,227.37,227.26,3.57619026]
[1757592966497,7.14,227.37,227.27,137.6]
[1757592966804,7.14,227.37,227.23,3.57619026]
[1757592967100,0.88,227.26,227.24,137.6]
[1757592967305,7.14,227.37,227.24,137.6]
[1757592967508,0.88,227.27,227.24,137.6]
[1757592967807,0.88,227.29,227.25,7.32]
[1757592968505,10.2,227.34,227.26,10.89619026]
[1757592968698,0.88,227.32,227.26,10.89619026]
[1757592969104,10.2,227.34,227.26,10.89619026]
[1757592969306,0.88,227.33,227.27,3.57619026]
[1757592969505,0.88,227.33,227.28,137.56]
[1757592969706,0.88,227.33,227.3,7.32]
[1757592970307,0.88,227.33,227.27,3.57619026]
[1757592970507,10.2,227.34,227.27,3.57619026]
[1757592970711,10.2,227.34,227.26,3.57619026]
[1757592970911,10.2,227.34,227.27,137.54]
[1757592971108,0.88,227.28,227.24,3.57619026]
[1757592971308,0.88,227.28,227.25,137.52]
[1757592971508,10.2,227.34,227.25,137.52]
[1757592971704,0.88,227.27,227.23,3.57619026]
[1757592971910,0.88,227.27,227.24,137.52]
[1757592972708,0.88,227.26,227.24,137.52]
[1757592973305,10.2,227.34,227.25,7.32]
[1757592973505,10.2,227.34,227.24,141.09619026]
[1757592974719,10.2,227.34,227.27,3.57619026]
[1757592974912,0.88,227.31,227.28,137.46]
[1757592975114,0.88,227.31,227.26,3.57619026]
[1757592975315,0.88,227.31,227.27,137.46]
[1757592975618,0.88,227.31,227.28,7.32]
[1757592975816,0.88,227.3,227.27,137.46]
[1757592976116,0.88,227.28,227.24,3.57619026]
[1757592976316,0.88,227.27,227.25,137.44]
[1757592976518,0.17,227.31,227.25,137.44]
[1757592976718,0.88,227.3,227.25,144.76]
[1757592976914,0.88,227.3,227.25,199.44]
[1757592977215,0.17,227.31,227.26,144.74]
[1757592977415,0.17,227.31,227.26,140.99619026]
[1757592977718,0.17,227.31,227.27,10.89619026]
[1757592977922,0.17,227.31,227.28,7.32]
[1757592978115,0.17,227.31,227.27,3.57619026]
[1757592978416,0.17,227.31,227.3,3.57619026]
[1757592978621,1.05,227.31,227.3,137.38]
[1757592979018,8.068,227.34,227.31,7.32]
[1757592979223,0.88,227.33,227.31,7.32]
[1757592979423,0.88,227.33,227.32,137.38]
[1757592979612,8.068,227.34,227.32,144.7]
[1757592979817,8.068,227.34,227.33,137.36]
[1757592980220,8.068,227.34,227.32,69.32]
[1757592980521,8.068,227.34,227.32,62.0]
[1757592980717,8.948,227.34,227.33,137.34]
[1757592981224,8.948,227.34,227.3,3.57619026]
[1757592981420,8.948,227.34,227.29,3.57619026]
[1757592981624,8.948,227.34,227.3,137.32]
[1757592981824,8.068,227.34,227.29,3.57619026]
[1757592982021,7.14,227.33,227.3,137.3]
[1757592982226,0.88,227.31,227.3,137.3]
[1757592982427,8.02,227.31,227.3,137.3]
[1757592982726,8.02,227.31,227.26,3.57619026]
[1757592982922,7.14,227.33,227.27,137.28]
[1757592983118,8.068,227.34,227.28,137.28]
[1757592983321,7.14,227.33,227.21,300.10294714]
[1757592983527,8.068,227.34,227.21,295.34]
[1757592983823,8.068,227.34,227.22,134.958]
[1757592983824,7.14,227.28,227.22,134.958]
[1757592984125,7.14,227.28,227.1,14.46421189]
[1757592984126,7.14,227.28,227.19,137.26]
[1757592984528,7.14,227.28,227.1,7.32]
[1757592984826,6.76067227,227.29,227.11,137.24]
[1757592985231,7.14,227.28,227.11,137.24]
[1757592985427,7.14,227.28,227.1,7.32]
[1757592985628,6.76067227,227.29,227.11,137.24]
[1757592985929,7.14,227.28,227.11,137.24]
[1757592986227,6.76067227,227.29,227.11,137.24]
[1757592986726,6.76067227,227.29,227.1,7.32]
[1757592986925,6.76067227,227.29,227.06,300.20294714]
[1757592986926,6.76067227,227.23,227.06,295.44]
[1757592987127,7.14,227.22,227.06,295.44]
[1757592987321,6.76067227,227.23,227.07,137.2]
[1757592987527,6.76067227,227.23,227.08,137.2]
[1757592988022,6.76067227,227.23,227.06,295.44]
[1757592988224,7.39,227.22,227.07,137.18]
[1757592988523,7.39,227.22,227.08,137.18]
[1757592989724,7.39,227.22,227.06,295.44]
[1757592989933,7.39,227.22,227.07,137.16]
[1757592990123,7.39,227.22,227.06,295.44]
[1757592990326,6.76067227,227.23,227.07,137.14]
[1757592990528,6.76067227,227.23,227.06,295.44]
[1757592990724,7.39,227.22,227.06,295.44]
[1757592990926,7.39,227.22,227.07,137.14]
[1757592991128,7.39,227.22,227.08,7.18]
[1757592992231,7.39,227.27,227.08,7.18]
[1757592993437,7.39,227.27,227.1,7.18]
[1757592994336,14.82867227,227.34,227.1,7.18]
[1757592994337,7.39,227.33,227.11,7.18]
[1757592994634,7.39,227.33,227.13,7.18]
[1757592995534,7.39,227.33,227.14,137.04]
[1757592995935,7.39,227.33,227.13,7.18]
[1757592996135,7.39,227.33,227.14,137.0]
[1757592996537,7.39,227.33,227.15,7.18]
[1757592996941,7.39,227.33,227.17,7.18]
[1757592997943,8.068,227.34,227.17,7.18]
[1757592998839,8.068,227.34,227.2,4.76294714]
[1757592999042,8.068,227.34,227.25,7.18]
[1757592999243,5.766,227.34,227.27,7.18]
[1757593000137,5.766,227.34,227.28,11.94294714]
[1757593000437,5.766,227.34,227.29,66.76294714]
[1757593000939,5.766,227.34,227.3,7.18]
[1757593001134,5.766,227.34,227.31,136.84]
[1757593001538,5.766,227.34,227.32,7.18]
[1757593001838,5.766,227.34,227.31,136.84]
[1757593002138,5.766,227.34,227.33,7.18]
[1757593002338,5.766,227.34,227.33,136.78]
[1757593002738,5.766,227.34,227.31,7.18]
[1757593003040,5.766,227.34,227.32,136.78]
[1757593003540,5.766,227.34,227.31,7.18]
[1757593003746,5.766,227.34,227.32,136.74]
[1757593004246,5.766,227.34,227.33,136.72]
[1757593004948,7.39,227.45,227.33,144.34]
[1757593005244,7.39,227.45,227.33,143.9]
[1757593006446,7.39,227.66,227.33,143.9]
[1757593006647,7.39,227.56,227.34,62.0]
[1757593006841,6.76067227,227.57,227.34,62.0]
[1757593007041,7.39,227.56,227.35,1.77]
[1757593007240,6.76067227,227.57,227.36,136.6]
[1757593007442,6.76067227,227.57,227.37,136.6]
[1757593007743,7.39,227.56,227.35,1.77]
[1757593008448,6.76067227,227.57,227.35,1.77]
[1757593008644,7.39,227.56,227.35,1.77]
[1757593008952,7.39,227.56,227.36,8.68]
[1757593009248,7.39,227.54,227.36,8.68]
[1757593009842,0.24,227.55,227.35,1.77]
[1757593009843,0.24,227.55,227.37,44.28]
[1757593010039,7.39,227.54,227.37,44.28]
[1757593010442,0.24,227.55,227.37,44.28]
[1757593010839,7.39,227.54,227.37,44.28]
[1757593011549,7.39,227.54,227.35,1.77]
[1757593011750,7.39,227.54,227.36,83.02]
[1757593011949,7.39,227.5,227.28,4.76294714]
[1757593012150,7.39,227.5,227.29,117.34]
[1757593012549,6.76067227,227.51,227.3,136.42]
[1757593012750,7.39,227.5,227.3,136.42]
[1757593013347,7.39,227.5,227.29,1.74]
[1757593013544,6.76067227,227.51,227.3,136.4]
[1757593013854,7.39,227.5,227.3,136.4]
[1757593014345,7.39,227.5,227.31,136.34]
[1757593014547,6.76067227,227.51,227.26,295.6]
[1757593014747,7.39,227.5,227.26,295.6]
[1757593015242,19.95067227,227.51,227.26,295.6]
[1757593015445,13.19,227.49,227.26,295.6]
[1757593015644,7.39,227.44,227.26,295.6]
[1757593016048,6.76067227,227.45,227.26,295.6]
[1757593016249,19.95067227,227.45,227.26,295.6]
[1757593016449,7.39,227.44,227.23,138.08]
[1757593016853,6.76067227,227.45,227.23,138.08]
[1757593017359,13.19,227.44,227.23,138.08]
[1757593017549,149.45,227.44,227.23,138.08]
[1757593017946,7.34,227.38,227.23,136.34]
[1757593018150,6.76067227,227.39,227.18,1.76]
[1757593018151,6.76067227,227.33,227.18,1.76]
[1757593018356,7.34,227.32,227.18,1.76]
[1757593019753,7.34,227.32,227.14,136.22]
[1757593019953,6.76067227,227.35,227.14,136.22]
[1757593020159,7.34,227.33,227.14,136.22]
[1757593020352,19.95067227,227.35,227.14,136.22]
[1757593020353,7.34,227.34,227.14,136.22]
[1757593020657,7.34,227.34,227.04,62.0]
[1757593020658,7.34,227.28,227.07,1.76]
[1757593026157,143.36,227.28,227.07,1.76]
[1757593027263,143.34,227.28,227.07,1.76]
[1757593028358,7.34,227.22,227.07,1.76]
[1757593030257,17.42067227,227.29,227.07,1.76]
[1757593030258,7.34,227.28,227.07,1.76]
[1757593031160,7.34,227.28,227.08,62.0]
[1757593031465,7.34,227.28,227.09,1.76]
[1757593031854,302.22067227,227.35,227.09,6.52294714]
[1757593032059,7.34,227.34,227.1,1.76]
[1757593032264,7.34,227.34,227.12,1.76]
[1757593032662,302.22067227,227.35,227.12,58.26]
[1757593033065,7.34,227.28,227.06,1.76]
[1757593033964,143.1,227.28,227.06,1.76]
[1757593034854,156.29,227.28,227.06,1.76]
[1757593035257,135.72,227.27,227.06,1.76]
[1757593035456,7.34,227.26,227.06,1.76]
[1757593036053,135.72,227.27,226.9,4.76294714]
[1757593036054,6.76067227,227.08,226.9,4.76294714]
[1757593036256,7.34,227.06,226.85,1.76]
[1757593036453,7.34,227.04,226.85,1.76]
[1757593036856,143.0,227.04,226.85,1.76]
[1757593037053,7.34,227.04,226.85,1.76]
[1757593037960,135.64,227.03,226.85,1.76]
[1757593038164,7.34,227.04,226.85,1.76]
[1757593039261,7.34,227.04,226.8,1.76]
[1757593039459,6.76067227,227.06,226.8,1.76]
[1757593039460,7.34,227.02,226.8,1.76]
[1757593039661,7.34,226.99,226.8,1.76]
[1757593040659,7.34,226.99,226.76,4.64]
[1757593040863,7.34,226.97,226.76,4.64]
[1757593041064,7.34,226.97,226.77,1.76]
[1757593042066,6.76067227,227.0,226.77,1.76]
[1757593042067,7.34,226.93,226.77,1.76]
[1757593043579,7.34,226.99,226.77,1.76]
[1757593045165,7.34,226.99,226.79,1.78]
[1757593045369,7.34,226.99,226.78,62.0]
[1757593045370,7.34,226.99,226.81,1.78]
[1757593045763,4.10142244,227.05,226.82,1.78]
[1757593045964,11.44142244,227.05,226.82,1.78]
[1757593046174,7.34,227.05,226.86,1.78]
[1757593046375,7.34,227.14,226.86,1.78]
[1757593046573,7.34,227.14,226.91,1.78]
[1757593046766,7.34,227.14,226.93,1.78]
[1757593047968,7.02,227.22,226.96,1.78]
[1757593048275,7.02,227.22,227.01,1.78]
[1757593048679,7.02,227.22,227.03,1.78]
[1757593049075,7.02,227.22,227.05,1.78]
[1757593049282,7.02,227.22,227.06,135.36]
[1757593049677,7.02,227.22,227.07,135.34]
[1757593050477,7.02,227.22,227.09,1.78]
[1757593050674,7.02,227.22,227.1,135.3]
[1757593050885,7.02,227.22,227.11,135.3]
[1757593051074,7.02,227.27,227.11,135.3]
[1757593051279,7.02,227.27,227.12,1.78]
[1757593051477,7.02,227.27,227.13,295.86]
[1757593051683,7.02,227.27,227.14,137.06]
[1757593051879,4.10142244,227.32,227.14,137.06]
[1757593051880,11.12142244,227.32,227.14,1.78]
[1757593052076,11.12142244,227.32,227.15,135.24]
[1757593052277,7.02,227.32,227.15,135.24]
[1757593052472,7.02,227.32,227.14,63.78]
[1757593052473,7.02,227.34,227.14,63.78]
[1757593052675,7.02,227.38,227.15,135.22]
[1757593052878,7.02,227.34,227.15,135.22]
[1757593053075,7.02,227.34,227.13,295.86]
[1757593053076,7.02,227.34,227.16,1.78]
[1757593053279,7.02,227.34,227.17,135.18]
[1757593053481,7.02,227.34,227.16,1.78]
[1757593053482,4.10142244,227.3,227.16,1.78]
[1757593053680,7.02,227.29,227.13,295.86]
[1757593053878,4.10142244,227.3,227.13,295.86]
[1757593054083,7.02,227.24,227.13,295.86]
[1757593055491,4.10142244,227.25,227.13,295.86]
[1757593055689,7.02,227.24,227.05,1.78]
[1757593055885,4.10142244,227.2,227.05,1.78]
[1757593056185,4.10142244,227.2,227.04,5.04]
[1757593056186,7.02,227.19,227.04,5.04]
[1757593056494,7.02,227.19,227.03,135.08]
[1757593056683,7.02,227.19,227.03,135.06]
[1757593056888,7.02,227.19,227.04,1.78]
[1757593059690,7.02,227.19,227.05,134.96]
[1757593061493,7.02,227.19,227.06,134.9]
[1757593063593,7.02,227.24,227.07,1.78]
[1757593063791,7.02,227.24,227.09,1.78]
[1757593064791,17.29142244,227.33,227.09,1.78]
[1757593064792,7.02,227.22,227.09,1.78]
[1757593066393,7.02,227.28,227.09,1.78]
[1757593066598,7.02,227.28,227.09,62.0]
[1757593066897,7.02,227.28,227.1,1.78]
[1757593067103,7.02,227.28,227.1,3.57027594]
[1757593067301,7.02,227.28,227.11,5.35027594]
[1757593067606,11.12142244,227.33,227.13,1.78]
[1757593068599,4.10142244,227.34,227.14,110.88]
[1757593068800,7.02,227.33,227.14,110.88]
[1757593069207,7.02,227.33,227.15,1.78]
[1757593070904,0.55,227.32,227.15,1.78]
[1757593072309,0.55,227.32,227.16,126.08]
[1757593072812,0.55,227.32,227.09,62.0]
[1757593072813,0.55,227.32,227.17,1.76]
[1757593073007,7.02,227.29,227.12,62.62]
[1757593073204,7.02,227.23,227.08,3.57027594]
[1757593073405,7.02,227.23,227.03,1.76]
[1757593075400,7.02,227.23,226.99,295.8]
[1757593075401,7.02,227.23,227.0,1.76]
[1757593075601,7.02,227.23,227.02,1.76]
[1757593075907,7.02,227.23,227.02,136.1]
[1757593076501,4.10142244,227.24,227.02,136.1]
[1757593077007,7.02,227.23,227.02,136.1]
[1757593077311,7.02,227.23,227.03,1.76]
[1757593077716,7.02,227.23,227.04,134.28]
[1757593078108,4.10142244,227.24,227.04,134.28]
[1757593078308,7.3,227.23,227.04,134.28]
[1757593078708,7.3,227.18,227.03,1.76]
[1757593080415,4.10142244,227.19,226.99,295.8]
[1757593080614,4.10142244,227.19,226.9,4.76294714]
[1757593080615,7.3,227.05,226.86,1.77]
[1757593083514,7.3,227.05,226.86,16.31]
[1757593084112,7.3,227.05,226.87,1.77]
[1757593084710,0.03132161,226.98,226.94,0.03167967]
[1757593084915,7.3,226.97,226.94,0.03167967]
[1757593085120,7.3,226.97,226.82,1.77]
[1757593087810,0.02982466,227.06,227.02,0.0313818]
[1757593088216,7.3,227.05,227.02,0.0313818]
[1757593088820,0.02982466,227.06,227.02,0.0313818]
[1757593090314,7.32982466,227.06,227.02,0.0313818]
[1757593091016,7.3,227.05,227.02,0.0313818]
[1757593091211,0.02982466,227.06,227.02,0.0313818]
[1757593091414,0.02982466,227.06,227.03,1.73]
[1757593091819,0.02982466,227.06,227.02,0.0313818]
[1757593092816,0.02982466,227.06,227.03,1.73]
[1757593093819,0.02982466,227.06,227.02,0.0313818]
[1757593094420,0.66,227.05,227.02,0.0313818]
[1757593094620,0.66,227.05,227.03,1.73]
[1757593094917,0.66,227.05,227.02,0.0313818]
[1757593094918,0.62832033,227.05,227.02,0.0313818]
[1757593095119,0.62832033,227.05,227.03,1.73]
[1757593095319,0.62832033,227.05,227.02,4.04165774]
[1757593095511,7.3,227.2,227.04,1.1]
[1757593095715,7.3,227.2,227.07,3.58857829]
[1757593095913,7.3,227.2,227.09,3.58857829]
[1757593096219,7.3,227.26,227.1,3.58857829]
[1757593096522,7.3,227.26,227.11,3.58857829]
[1757593096925,7.3,227.26,227.16,0.0320589]
[1757593099218,45.38,227.32,227.04,235.84]
[1757593099219,7.3,227.16,227.04,235.84]
[1757593099719,7.3,227.11,226.95,4.69857829]
[1757593099925,7.3,227.11,226.93,3.58857829]
[1757593100319,4.10142244,227.1,226.92,3.58857829]
[1757593100517,7.3,227.09,226.92,3.58857829]
[1757593100917,7.3,227.09,226.89,5.87294714]
[1757593100918,7.3,227.09,226.91,3.58857829]
[1757593101225,7.3,227.09,226.9,3.58857829]
[1757593101628,7.3,227.09,226.91,3.58857829]
[1757593102720,7.3,227.09,226.93,3.58857829]
[1757593102925,7.3,227.09,226.94,3.58857829]
[1757593103428,7.3,227.09,226.94,4.69857829]
[1757593104326,7.3,227.09,226.94,1.11]
[1757593104530,7.3,227.09,226.96,3.58857829]
[1757593104829,7.3,227.09,226.98,1.11]
[1757593105028,7.3,227.16,226.99,3.58857829]
[1757593105221,7.3,227.16,226.98,4.69857829]
[1757593105622,7.3,227.16,226.96,3.58857829]
[1757593105822,7.3,227.16,226.97,4.69857829]
[1757593106022,7.3,227.16,226.97,1.11]
[1757593106224,7.3,227.16,226.97,4.69857829]
[1757593106426,7.3,227.16,226.97,1.11]
[1757593107327,7.3,227.16,226.97,4.69857829]
[1757593107625,7.3,227.16,226.97,1.11]
[1757593109933,7.3,227.16,226.95,3.58857829]
[1757593111234,7.3,227.16,226.97,1.12]
[1757593112533,7.3,227.16,226.98,3.58857829]
[1757593112834,7.3,227.16,227.01,1.12]
[1757593113634,7.3,227.16,227.03,3.58857829]
[1757593114039,6.77633907,227.28,227.04,53.76]
[1757593114242,7.42,227.27,227.08,3.58857829]
[1757593114529,7.42,227.27,227.07,3.58857829]
[1757593114730,7.42,227.27,227.06,3.58857829]
[1757593114927,7.42,227.18,227.15,0.0329537]
[1757593115132,0.02875724,227.19,227.15,0.0329537]
[1757593115332,7.42,227.27,227.15,0.0329537]
[1757593115531,7.42,227.18,227.05,3.58857829]
[1757593115729,7.42,227.18,227.02,3.58857829]
[1757593116435,7.42,227.18,227.03,3.58857829]
[1757593116636,7.42,227.18,227.03,4.73857829]
[1757593116841,0.02975836,227.13,227.05,3.58857829]
[1757593117036,0.02975836,227.13,227.04,3.58857829]
[1757593117242,0.02975836,227.13,227.03,1.15]
[1757593117243,0.02975836,227.13,227.03,4.73857829]
[1757593117634,0.02975836,227.13,227.06,3.58857829]
[1757593117842,0.02975836,227.13,227.1,4.73857829]
[1757593118039,0.02975836,227.13,227.1,3.58857829]